Cogmind - Beta 13 @@@ ROGUE MODE // 2024.04.01 @ 18:56:53 Player: ZowhanFlame Result: Destroyed by D-53 Grenadier with Mini Grenade Launcher Performance ------------- Evolutions (0) 0 Regions Visited (2) 400 Robots Destroyed (8) 40 Value Destroyed (95) 95 Prototype IDs (0) 0 Alien Tech Used (0) 0 Bonus (14) 14 TOTAL SCORE: 549 Bonus ------- Follower Combat Kills 14 Cogmind --------- Core Integrity 0/250 Matter 300/300 Energy 98/100 System Corruption 2% Temperature Cool (0) Movement Core (50) Location -10/Mines Parts ------- > --- POWER (1) -------- (None) > --- PROPULSION (2) --- (None) > --- UTILITY (2) ------ Improved Heat Sink Makeshift Terrain Scan Processor > --- WEAPON (2) ------- (None) > --- INVENTORY (5) ---- Medium Matter Pod (100) Light Assault Rifle Hammer Peak State ------------ > --- POWER ------------ Ion Engine > --- PROPULSION ------- Wheel Compact Wheel > --- UTILITY ---------- Improved Heat Sink Makeshift Terrain Scan Processor > --- WEAPON ----------- Assault Rifle Light Assault Rifle > --- INVENTORY -------- Ion Engine Medium Matter Pod Light Assault Rifle Hammer [Rating: 12] Favorites ----------- Power Ion Engine Engine Ion Engine Propulsion Wheel Wheel Wheel Utility Improved Heat Sink Device Improved Heat Sink Processor Makeshift Terrain Scan Processor Weapon Light Assault Rifle Ballistic Gun Light Assault Rifle Build | -11 -10 -10 ------- Run | Yrd Mat Min Slots Evolved . | . . . Power . | . . . Propulsion . | . . . Utility . | . . . Weapon . | . . . Parts Attached 12 | 5 2 5 Power 3 | 1 1 1 Engine 3 | 1 1 1 Core . | . . . Reactor . | . . . Propulsion 4 | 2 . 2 Treads . | . . . Leg . | . . . Wheel 4 | 2 . 2 Hover . | . . . Flight . | . . . Utility 2 | . . 2 Device 1 | . . 1 Storage . | . . . Processor 1 | . . 1 Hackware . | . . . Protection . | . . . Artifact . | . . . Weapon 3 | 2 1 . Energy Gun . | . . . Energy Cannon . | . . . Ballistic Gun 3 | 2 1 . Ballistic Cannon . | . . . Launcher . | . . . Special Weapon . | . . . Impact Weapon . | . . . Slashing Weapon . | . . . Piercing Weapon . | . . . Special Melee Weapon . | . . . Unidentified Prototypes . | . . . Parts Lost 7 | . 1 6 Power 2 | . . 2 Propulsion 3 | . 1 2 Utility . | . . . Weapon 2 | . . 2 Highest Loss Streak 6 | . 1 6 To Critical Strikes 1 | . 1 . Average Slot Usage (%) 73 | . 65 80 Engine 14 | . 14 14 Wheel 23 | . 22 24 Device 3 | . . 7 Processor 2 | . . 5 Ballistic Gun 27 | . 28 27 Naked Turns . | . . . Heaviest Build 9 | 6 8 9 Greatest Support 26 | 20 20 26 Greatest Overweight (x) 2 | . . 2 Average Overweight (x) . | . . . Largest Inventory Capacity 5 | 5 5 5 Average Capacity 5 | 5 5 5 Most Carried 5 | 2 5 5 Average Carried 3 | . 3 4 Final Capacity 5 | 5 5 5 Final Carried 5 | 1 5 3 Class Distribution -------------------- 82% | Mutant 17% | Scavenger-Mutant Dominant Class ---------------- Mutant | -10/Materials Mutant | -10/Mines Resources | -11 -10 -10 ----------- Run | Yrd Mat Min Matter Collected 501 | 282 48 171 Remotely . | . . . Salvage Created 146 | 49 48 49 Parts 15 | 3 7 5 Haulers Intercepted . | . . . Recyclers Shooed . | . . . Parts Field Recycled . | . . . Retrieved Matter . | . . . Parts Self-Destructed . | . . . Prevented . | . . . Kills | -11 -10 -10 ------- Run | Yrd Mat Min Combat Hostiles Destroyed 7 | 1 3 3 Guns 7 | 1 3 3 Classes Destroyed 3 | 2 1 . Worker 1 | 1 . . Swarmer 6 | . 3 3 Grunt 1 | 1 . . Best Kill Streak 3 | 1 3 2 Combat Bots Only 3 | 1 3 2 Max Kills in Single Turn 1 | 1 1 1 Gunslinging . | . . . Exploded . | . . . Melee . | . . . Uniques/NPCs Destroyed . | . . . Combat | -11 -10 -10 -------- Run | Yrd Mat Min Hostile Shots Fired 67 | 9 31 27 Missed 23 | 1 10 12 Damage Taken 745 | 88 175 482 Core 275 | 33 17 225 Absorbed by Shields . | . . . Core Remaining (%) 86 | 86 . . Volleys Fired 24 | 8 11 5 Largest 2 | 2 2 2 Hottest 40 | 40 40 40 Shots Fired 48 | 16 22 10 Gun 48 | 16 22 10 Cannon . | . . . Launcher . | . . . Special . | . . . Kinetic 48 | 16 22 10 Thermal . | . . . Explosive . | . . . Electromagnetic . | . . . Robot Hit Streak 6 | 6 2 2 Robot Miss Streak 4 | 2 4 2 Penetration Max . | . . . Secondary Targets 1 | . . 1 Max Gunslinging Chain 1 | . . 1 Shots Hit Robots 22 | 9 8 5 Core Hits 10 | 4 3 3 Critical Kills . | . . . Critical Parts Destroyed . | . . . Critical Strikes . | . . . Melee Attacks . | . . . Impact . | . . . Slashing . | . . . Piercing . | . . . Sneak Attacks . | . . . Combat Hostiles . | . . . Follow-up Attacks . | . . . Damage Inflicted 266 | 110 104 52 Guns 266 | 110 104 52 Cannons . | . . . Explosions . | . . . Melee . | . . . Ramming . | . . . Kinetic 266 | 110 104 52 Thermal . | . . . Explosive . | . . . Electromagnetic . | . . . Impact . | . . . Slashing . | . . . Piercing . | . . . Highest Corruption 2 | . . 2 Average Corruption 2 | . . 2 Corruption Purged . | . . . Corruption Blocked . | . . . Effects 1 | . . 1 Energy Discharges 1 | . . 1 Overload Shots . | . . . Overflow Damage . | . . . Projectiles . | . . . Explosions . | . . . Melee . | . . . Knockbacks . | . . . Impact . | . . . Kinetic . | . . . Secondary . | . . . Self-Inflicted Damage . | . . . Shots . | . . . Rammed . | . . . Targets Rammed . | . . . Kicked . | . . . Crushed . | . . . Highest Temperature 12 | 12 . . Average Temperature 7 | 7 . . Received Heat Transfer 97 | 48 . 49 Siege Activations . | . . . Robots Corrupted . | . . . Combat Hostiles . | . . . Parts Fried . | . . . Impact Corruptions . | . . . Robots Melted . | . . . Combat Hostiles . | . . . Parts Melted . | . . . Heat Transferred . | . . . Parts Sabotaged . | . . . Parts Stolen . | . . . Parts Stripped . | . . . Power Chain Reactions . | . . . Alert | -11 -10 -10 ------- Run | Yrd Mat Min Peak Influence 124 | 25 76 124 Initial 29 | . 16 29 Average 56 | 4 40 94 Maximum Alert Level . | . . . Low Security (%) 100 | 100 100 100 Level 1 . | . . . Level 2 . | . . . Level 3 . | . . . Level 4 . | . . . Level 5 . | . . . High Security . | . . . Max Security . | . . . Squads Dispatched 1 | . 1 . Investigation . | . . . Extermination . | . . . Reinforcement 1 | . 1 . Assault . | . . . Garrison . | . . . Intercept . | . . . Searches Triggered . | . . . Construction Impeded . | . . . Haulers Reinforced . | . . . Active Scanning Responses . | . . . Cargo Convoy Interrupts . | . . . Stealth | -11 -10 -10 --------- Run | Yrd Mat Min Distress Signals 1 | . 1 . Communications Jammed . | . . . Distress Signals . | . . . Times Spotted 28 | 1 4 23 Peak Tracking Total 19 | 1 5 19 Tactical Retreats . | . . . Traps | -11 -10 -10 ------- Run | Yrd Mat Min Traps Triggered . | . . . Indirectly . | . . . Trap Hack Attempts . | . . . Triggered . | . . . Disarmed . | . . . Reprogrammed . | . . . Reused . | . . . Traps Extracted . | . . . Installed . | . . . Triggered . | . . . Machines | -11 -10 -10 ---------- Run | Yrd Mat Min Machines Disabled . | . . . Max in Single Turn . | . . . Machines Repaired . | . . . Machines Dismantled . | . . . Machines Sabotaged . | . . . Overloaded Fab Kills . | . . . Hacking | -11 -10 -10 --------- Run | Yrd Mat Min Machines Accessed . | . . . Terminals . | . . . Fabricators . | . . . Repair Stations . | . . . Recycling Units . | . . . Scanalyzers . | . . . Garrison Access . | . . . Total Hacks . | . . . Successful . | . . . Failed . | . . . Catastrophic . | . . . Database Lockouts . | . . . Manual . | . . . Terminals . | . . . Fabricators . | . . . Repair Stations . | . . . Recycling Units . | . . . Scanalyzers . | . . . Garrison Access . | . . . Terminal Hacks . | . . . Fabricator Hacks . | . . . Repair Station Hacks . | . . . Recycling Unit Hacks . | . . . Scanalyzer . | . . . Garrison Access Hacks . | . . . Unauthorized Hacks . | . . . Terminals . | . . . Fabricators . | . . . Repair Stations . | . . . Recycling Units . | . . . Scanalyzers . | . . . Garrison Access . | . . . Data Cores Recovered . | . . . Used . | . . . Hacking Detections . | . . . Full Trace Events . | . . . Feedback Events . | . . . Feedback Blocked . | . . . Robot Schematics Acquired . | . . . Robots Built . | . . . Authchips . | . . . Time . | . . . Total Robot Build Rating . | . . . Part Schematics Acquired . | . . . Parts Built . | . . . Authchips . | . . . Time . | . . . Total Part Build Rating . | . . . Parts Repaired . | . . . Time . | . . . Parts Recycled . | . . . Recycled Matter . | . . . Retrieved Matter . | . . . Retrieved Components . | . . . Parts Scanalyzed . | . . . Part Schematics Acquired . | . . . Parts Damaged . | . . . Bothacking | -11 -10 -10 ------------ Run | Yrd Mat Min Used RIF Installer . | . . . Robots Hacked . | . . . Non-combat . | . . . Combat . | . . . Robot Hacks Applied . | . . . Relay Couplers Released . | . . . Fabnet Peak Effective % . | . . . Robots Rewired . | . . . Allies Hacked . | . . . Hacks Repelled . | . . . Allies | -11 -10 -10 -------- Run | Yrd Mat Min Total Allies 2 | . . 2 Largest Group 2 | . . 2 Highest-Rated Group 47 | . . 47 Highest-Rated Ally 31 | . . 31 Total Orders . | . . . Ally Attacks 13 | . . 13 Total Damage 128 | . . 128 Kills 3 | . . 3 Allies Corrupted . | . . . Allies Melted . | . . . Intel | -11 -10 -10 ------- Run | Yrd Mat Min Robot Analysis Total . | . . . Derelict Logs Recovered 1 | . . 1 Drone Launches . | . . . Drone Recoveries . | . . . Exploration | -11 -10 -10 ------------- Run | Yrd Mat Min Turns Passed 465 | 80 193 192 Spaces Moved 434 | 65 193 176 Core 22 | 16 . 6 Treads . | . . . Legs . | . . . Wheels 412 | 49 193 170 Hover . | . . . Flight . | . . . Fastest Speed 50 | 50 80 50 Average Speed 81 | 72 80 86 Slowest Speed 150 | 80 80 150 Overloaded Moves . | . . . Propulsion Burnouts . | . . . Robots Hopped . | . . . Cave-ins Triggered . | . . . Exploration Rate (%) 25 | 9 24 43 Regions Visited 2 Branch Regions 1 Pre-discovered Areas 1 | . . 1 Known Exits Taken . | . . . Unknown Exits Taken 2 | 1 1 . Scrap Searched . | . . . Spaces Dug . | . . . Terrain Destroyed . | . . . Melee . | . . . Projectile . | . . . AOE . | . . . Terrain Rammed . | . . . Walls Destroyed . | . . . Machines Disabled . | . . . Actions | -11 -10 -10 --------- Run | Yrd Mat Min Total 502 | 83 212 207 Wait 17 | . . 17 Move 432 | 64 192 176 Hop . | . . . Pick Up 14 | 6 5 3 Fast Attach . | . . . Attach 10 | 5 1 4 Detach 1 | . 1 . Swap 2 | . 1 1 Drop 2 | . 1 1 Fire 24 | 8 11 5 Melee . | . . . Ram . | . . . Kick . | . . . Crush . | . . . Escape Stasis . | . . . Rewire . | . . . Trap . | . . . Miscellaneous . | . . . Route ------- -11/Scrapyard -10/Materials -10/Mines (discovered 1 exit: [*Mat]) History --------- Turn | Location | Event 2 | -11/Scrapyard | Met Revision 17 53 | -11/Scrapyard | Discovered new exit (range 8) 81 | -11/Scrapyard | Entered Materials 130 | -10/Materials | Discovered new exit (range 9) 274 | -10/Materials | Entered Mines 306 | -10/Mines | Discovered new exit (range 13) 324 | -10/Mines | Build established: Mutant 404 | -10/Mines | Learned location of Storage (-7) 431 | -10/Mines | Assembled infested the area 461 | -10/Mines | Core integrity fell below 50% 463 | -10/Mines | Core integrity fell below 20% 466 | -10/Mines | Destroyed by D-53 Grenadier with Mini Grenade Launcher Last Messages --------------- payload. 00450_ D-53 Grenadier unfolds itself. 00454_ Assault Rifle destroyed. 00454_ System corrupted by crushing effect (+2). 00454_ Knocked back. 00455_ as-65775 destroyed. 00456_ as-28027 sneak attacks. 00456_ T-07 Excavator system corrupted by crushing effect. 00456_ Wheel destroyed. 00456_ Ion Engine destroyed. 00456_ as-28027 destroyed. 00457_ T-07 Excavator destroyed. 00458_ The unstable cave ceiling collapses. 00459_ Com. Wheel destroyed. 00463_ The unstable cave ceiling collapses. 00464_ System corrupted: Energy discharge (-27). 00465_ Ion Engine destroyed. 00465_ Lgt. Assault Rifle destroyed. 00466_ The unstable cave ceiling collapses. Map ----- +----------------------------------------------------+ | ?????????????????????????????????????????? | | ?????????????????????????????????????????? | | ????????????####?????????????????????????? | | ????????????? ???####??????????####????? | | ?????????????# ??## ###?######## ##???? | | ?????????????# ??# =### ##??? | | ?????????????# ### %=%=!! #??? | | ?????????????# #% ##%[ ##?? | | ?????????##### = #### = #?? | | ?????????# % ##?####### [ #?? | | ?????????# #???????## * #?? | | ?????????# #????????#== #?? | | ?????????### ##????????# #?? | | ???????????## ##?????????# #?? | | ????????????### ####??????????## #?? | | ?????????###### ##?????????????# #?? | | ?????????# """ #?????????????# #?? | | ?????##### """ < #?????????????# #?? | | ###### """ #?????????????# #?? | | #?????????????## #?? | | ##### ### #?????###??????#### #?? | | ?????# #?# #?????# ??###????# #?? | | ?????# #?##########?????# #?## #???# #?? | | ?????# ######????????#### ### #??# #?? | | ?????# #???????## # ## ??# #?? | | ?????##### #???????# @ # ??# #?? | | ?????????# ###????## ## ??# #?? | | ?????????# ##???# ## ??# #?? | | ?????????# #??## ## #??# #?? | | ?????????## #??# # ##?# #?? | | ??????????# " ##??# ### #?? | | ??????????#"%"#??## #?? | | ???????#### " ### a #?? | | ???????# d # ######?? | | ???????# d ## #?????? | | ???????# ## a # #### #?????? | | ???????# ### ####??# #?????? | | ???????# #?# ##??## ##?????? | | ???????# ### #???# #??????? | | ???????# ### #??# #??????? | | ???????# #### #??# #??????? | | ??????## #?## # #??# #??????? | | ????### ####=### #?? #??????? | | # ##* #?? #??????? | | # #### * #?? ###??????? | | #??####[ # ######?? ?????????? | | ## ### #?????# ###??????? ?????????? | | ?## #??# #?????# #????????? ?????????? | | ??#####???# #?????# #????????? ?????????? | | ?????????? ?????# #????????? ?????????? | +----------------------------------------------------+ Best States ------------- Heat Dissipation 39 Energy Generation 10 Energy Capacity 250 Matter Stores 300 Matter Capacity 300 Sight Range 16 Terrain Scan Density 135 Evasion (%) 50 Item Schematics ----------------- None Robot Schematics ------------------ None Fabricated ------------ Nothing Alien Tech Used ----------------- None Achievements -------------- None Challenges ------------ None Game ------ Seed ColdHellfireMantle Manual? 0 Play Time 00:15:58 Cumulative 1.0 hours Start 2024.04.01 @ 18:40:41 End 2024.04.01 @ 18:56:53 Sessions 1 Manual Loads 0 Difficulty Rogue Special Mode None Game No. 2 Rogue 2 Adventurer 0 Explorer 0 Win Type - Total 0 Types 0/0/0/0/0/0/0/0/0 Lore% 0 Gallery% 2 Achievement% 1 Wizard Run 0 Options --------- Layout 1 ASCII 0 Keyboard 0 Movement Mouse Keybinds 0 Fullscreen 2 Font 32/Terminus Map View 50x35 Zoom Use 0% Tactical HUD 1 Map Filters NONE Filters NONE Steam 1 RUN: 3f1f0c85-592f-4eff-a9fe-d12f8d2f8f25